Workbook

Sheet Superpesis
B1: Marja-Liisa Nyrhinen | E1: 24.2.1966 | I1: ( myöh. Lintala)
B2: SUPERPESIS | E2: Runkosarja | I2: Kärkilyönnit (KL), pesänvälit | Q2: Runkosarja | U2: Ylempi loppusarja | Z2: Alempi loppusarja | AE2: Arvo-ottelut ja mitalit | AK2: Runkosarjan jälkeen
B3: Vuosi | C3: Sija | D3: Seura | E3: OTT | F3: KUN | G3: LÖI | H3: TOI | I3: KL | J3: 0 > 1 | K3: 1 > 2 | L3: 2 > 3 | M3: 3 > k | N3: KL-% | P3: LÖI | Q3: TOI | R3: L+T | S3: KL | U3: OTT | V3: KUN | W3: LÖI | X3: TOI | Y3: KL | Z3: OTT | AA3: KUN | AB3: LÖI | AC3: TOI | AD3: KL | AE3: IL | AF3: LL | AG3: Halli | AH3: K | AI3: H | AJ3: P
B4: 1988 | C4: 6. | D4: VäVi | E4: 4 | F4: 0 | G4: 1 | H4: 2 | I4: 5 | J4: 0 | K4: 2 | L4: 2 | M4: =PRODUCT(F4+G4) -> 1 | N4: ----
B5: 1989 | C5: 8. | D5: VäVi | E5: 18 | F5: 0 | G5: 3 | H5: 4 | I5: 31 | J5: 17 | K5: 9 | L5: 2 | M5: =PRODUCT(F5+G5) -> 3 | N5: ----
B6: 1990 | C6: 11. | D6: VäVi | E6: 22 | F6: 2 | G6: 7 | H6: 37 | I6: 114 | J6: 58 | K6: 33 | L6: 14 | M6: =SUM(F6+G6) -> 9 | N6: 62.1 % | O6: =PRODUCT(I6/N6) -> 183.5748792 | AK6: superpesiskarsinta
B7: 1991 | C7: 3. | D7: Virkiä | E7: 22 | F7: 1 | G7: 22 | H7: 23 | I7: 100 | J7: 40 | K7: 15 | L7: 22 | M7: =SUM(F7+G7) -> 23 | N7: 70.9 % | O7: 141.0437236 | AJ7: 1 | AK7: play off
B8: 1992 | C8: 1. | D8: Virkiä | E8: 22 | F8: 3 | G8: 21 | H8: 37 | I8: 89 | J8: 28 | K8: 18 | L8: 19 | M8: =SUM(F8+G8) -> 24 | N8: 55.6 % | O8: 160.0719424 | AH8: 1 | AK8: play off
B9: 1993 | C9: 1. | D9: Virkiä | E9: 23 | F9: 2 | G9: 22 | H9: 62 | I9: 133 | J9: 65 | K9: 22 | L9: 22 | M9: =SUM(F9+G9) -> 24 | N9: 59.4 % | O9: 223.9057239 | Q9: 2. | R9: 2. | AE9: 1 | AH9: 1 | AK9: play off
B10: 1994 | C10: 7. | D10: YJ | E10: 24 | F10: 3 | G10: 9 | H10: 36 | I10: 110 | J10: 43 | K10: 32 | L10: 23 | M10: 12 | N10: 59.5 % | O10: 184.8739496 | T10: =PRODUCT(L10/S10) ->  | AK10: puolivälierät
B11: 1995 | C11: 7. | D11: YJ | E11: 22 | F11: 5 | G11: 6 | H11: 45 | I11: 129 | J11: 79 | K11: 25 | L11: 14 | M11: 11 | N11: 64.2 % | O11: 200.9345794 | Q11: 9. | AE11: 1 | AG11: mS | AK11: play off
B12: 1996 | C12: 6. | D12: YJ | E12: 24 | F12: 5 | G12: 13 | H12: 53 | I12: 133 | J12: 60 | K12: 35 | L12: 20 | M12: 18 | N12: 60.5 % | O12: 219.8347107 | Q12: 7. | AE12: 1 | AG12: mS | AK12: play off
B13: 1997
B14: 1998 | D14: VäVi | F14: ykköspesis
B15: 1999
B16: 2000 | D16: VäVi | F16: ykköspesis
B17: Yhteensä | E17: =SUM(E4:E16) -> 181 | F17: 21 | G17: 104 | H17: 299 | I17: 844 | J17: 390 | K17: 191 | L17: 138 | M17: 125 | N17: =PRODUCT((I17-36)/O17) -> 61.5 % | O17: =SUM(O6:O16) -> 1314.239509 | U17: =SUM(U4:U16) -> 0 | V17: 0 | W17: 0 | X17: 0 | Y17: 0 | Z17: 0 | AA17: 0 | AB17: 0 | AC17: 0 | AD17: 0 | AE17: 3 | AF17: 0 | AG17: 0 | AH17: 2 | AI17: 0 | AJ17: 1
B18: Pesispörssi | D18: =SUM(F17:H17)+((I17-F17-G17)/3)+(E17/3)+(AE17*25)+(AF17*25)+(AG17*10)+(AH17*25)+(AI17*20)+(AJ17*15)+20 -> 884.0
B20: URA SUPERISSA | E20: OTT | F20: KUN | G20: LÖI | H20: TOI | I20: KL | K20: ka/L | L20: ka/T | M20: ka/KL | N20: K - % | P20: ENSIMMÄISET
B21: Runkosarja | E21: =PRODUCT(E17) -> 181 | F21: =PRODUCT(F17) -> 21 | G21: =PRODUCT(G17) -> 104 | H21: =PRODUCT(H17) -> 299 | I21: =PRODUCT(I17) -> 844 | K21: =PRODUCT((F21+G21)/E21) -> 0.69 | L21: =PRODUCT(H21/E21) -> 1.65 | M21: =PRODUCT(I21/E21) -> 4.66 | N21: =PRODUCT(N17) -> 61.5 % | O21: =PRODUCT(O17) -> 1314.239509 | P21: Ottelu
B22: Ylempi loppusarja | P22: Lyöty juoksu
B23: Alempi loppusarja | P23: Tuotu juoksu
B24: KAIKKI | E24: =SUM(E21:E23) -> 181 | F24: =SUM(F21:F23) -> 21 | G24: =SUM(G21:G23) -> 104 | H24: =SUM(H21:H23) -> 299 | I24: =SUM(I21:I23) -> 844 | K24: =PRODUCT((F24+G24)/E24) -> 0.69 | L24: =PRODUCT(H24/E24) -> 1.65 | M24: =PRODUCT(I24/E24) -> 4.66 | N24: 61.5 % | O24: =SUM(O21:O23) -> 1314.239509 | P24: Kunnari
B26: Seurat | D26: VäVi = Vähänkyrön Viesti (1938)
D27: Virkiä = Lapuan Virkiä (1907)
D28: YJ = Ylihärmän Junkkarit (1908)

Sheet Arvo-ottelut
B1: ITÄ - LÄNSI - KORTTI
B2: Marja-Liisa Nyrhinen | C2: 24.2.1966
B3: NAISET | C3: Itä - Länsi, tulos | D3: Joukkue | E3: Seura | G3: V | H3: T | I3: H | J3: Up. | K3: Lj. | L3: Palk. | M3: O | N3: K | O3: L | P3: T | Q3: KL | R3: 1 | S3: 2 | T3: 3 | U3: k | V3: KL-% | W3: Pelinjohtaja | X3: Yleisöä
B4: 24.07. 1993 Sotkamo | C4: 15-21 | D4: Länsi | E4: Virkiä | G4: 1 | J4: 2k | K4: 1 | L4: II p | M4: 1 | O4: 2 | P4: 2 | Q4: 7/10 | R4: 2/3 | S4: 2/2 | T4: 1/2 | U4: 2/3 | V4: 70.0 % | W4: Petri Kaijansinkko | X4: 3799
B5: 15.07. 1995 Alajärvi | C5: 1-1 (4-3, 3-4, 0-0) | D5: Länsi | E5: YJ | G5: 1 | K5: jok | M5: 1 | Q5: 0/2 | R5: 0/2 | V5: 0.0 % | W5: Tuomo Tallbacka | X5: 4622
B6: 13.07. 1996 Kitee | C6: 2-1 (10-3, 3-7, 2-0) | D6: Länsi | E6: YJ | I6: 1 | J6: 3k | K6: 2 | M6: 1 | P6: 2 | Q6: 4/6 | R6: 2/4 | S6: 1/1 | T6: 1/1 | V6: 66.7 % | W6: Jari Karjanlahti | X6: 6113
B7: Yhteensä | G7: =SUM(G4:G6) -> 2 | I7: =SUM(I4:I6) -> 1 | M7: =SUM(M4:M6) -> 3 | O7: 2 | P7: 4 | Q7: 11/18 | R7: 4/9 | S7: 3/3 | T7: 3/3 | U7: 2/3 | V7: 61.1 %
B8: Ikä ensimmäisessä ottelussa | C8: 27 v 5 kk 0 pv
